bitfinex/quotes_ETHUSD_20250213
["timestamp","ask_amount","ask_price","bid_price","bid_amount"]
[1739471301055,0.144223,2635.9,2635.8,6.79391]
[1739471303274,0.27228257,2635.9,2635.8,3.0]
[1739471303845,0.27228257,2635.9,2635.7,3.79399]
[1739471304046,0.27228257,2635.9,2635.7,7.58797]
[1739471304277,0.27228257,2635.9,2635.7,3.79398]
[1739471304477,0.27228257,2635.9,2635.8,3.79391]
[1739471304641,0.27228257,2635.9,2635.8,7.552699]
[1739471305145,0.27228257,2635.9,2635.8,8.323699]
[1739471305359,0.144223,2635.9,2635.8,8.323699]
[1739471305539,0.27229888,2635.9,2635.8,8.323699]
[1739471306287,0.27229888,2635.9,2635.8,3.758789]
[1739471306497,0.27229888,2635.9,2635.6,3.79413]
[1739471306857,0.27229888,2635.9,2635.7,6.79402]
[1739471307343,0.27229888,2635.9,2635.6,3.0]
[1739471307545,0.27229888,2635.9,2635.7,3.79402]
[1739471308093,0.27229888,2635.9,2635.8,3.79391]
[1739471308248,0.27229888,2635.9,2635.6,3.0]
[1739471308606,0.27229888,2635.9,2635.8,3.79391]
[1739471309960,0.27229888,2635.9,2635.8,6.79391]
[1739471310861,0.27229888,2635.9,2635.8,3.0]
[1739471311547,0.27229888,2635.9,2635.8,6.79391]
[1739471313296,0.27229888,2635.9,2635.8,3.0]
[1739471313607,0.27229888,2635.9,2635.8,6.79391]
[1739471313984,0.27229888,2635.9,2635.8,7.852694]
[1739471318514,0.144223,2635.9,2635.8,7.852694]
[1739471319486,0.144223,2635.9,2635.8,8.652494]
[1739471319781,0.27257613,2635.9,2635.8,8.652494]
[1739471319990,0.144223,2635.9,2635.8,8.652494]
[1739471320769,0.27257613,2635.9,2635.8,8.652494]
[1739471321315,0.144223,2635.9,2635.8,8.652494]
[1739471323025,3e-06,2635.9,2635.8,8.652494]
[1739471324548,3e-06,2635.9,2635.8,9.202494]
[1739471325051,3e-06,2635.9,2635.8,9.209994]
[1739471326154,3e-06,2635.9,2635.8,9.217494]
[1739471329440,3e-06,2635.9,2635.8,9.98945927]
[1739471330279,3e-06,2635.9,2635.8,9.97445927]
[1739471331328,3e-06,2635.9,2635.8,4.852694]
[1739471331543,3e-06,2635.9,2635.8,3.79391]
[1739471331985,0.12870674,2635.9,2635.8,6.79391]
[1739471332129,3e-06,2635.9,2635.8,3.79391]
[1739471332530,3e-06,2635.9,2635.8,6.79391]
[1739471332974,3e-06,2635.9,2635.8,6.82238453]
[1739471333172,3e-06,2635.9,2635.8,8.25529516]
[1739471333343,3e-06,2635.9,2635.8,8.22682063]
[1739471335182,3e-06,2635.9,2635.8,6.79391]
[1739471335387,0.12908178,2635.9,2635.8,6.79391]
[1739471336066,3e-06,2635.9,2635.8,6.79391]
[1739471336255,3e-06,2635.9,2635.8,6.8223792]
[1739471336462,3e-06,2635.9,2635.8,7.6002792]
[1739471336659,3e-06,2635.9,2635.8,9.0825101]
[1739471338374,3e-06,2635.9,2635.8,9.6325101]
[1739471341310,3e-06,2635.9,2635.8,8.8546101]
[1739471341488,3e-06,2635.9,2635.8,8.3046101]
[1739471342013,0.12923663,2635.9,2635.8,6.79391]
[1739471342164,3e-06,2635.9,2635.8,3.79391]
[1739471342357,0.12913066,2635.9,2635.8,3.79391]
[1739471342557,0.12913066,2635.9,2635.8,6.79391]
[1739471343516,0.12913066,2635.9,2635.5,3.79422]
[1739471343812,0.7865,2635.8,2635.6,3.0]
[1739471344173,1.25743307,2635.8,2635.4,3.79449]
[1739471344521,0.12912766,2635.7,2635.3,3.79463]
[1739471344719,0.12912766,2635.7,2635.3,3.79455]
[1739471345022,0.12879338,2635.6,2635.3,7.5891]
[1739471345176,0.12879338,2635.6,2635.4,3.0]
[1739471345521,7.33434307,2635.8,2635.4,3.0]
[1739471345720,0.92989338,2635.5,2635.4,3.0]
[1739471346064,0.8011,2635.5,2635.4,3.0]
[1739471346426,0.92962425,2635.5,2635.4,3.0]
[1739471346792,0.92962425,2635.5,2635.4,3.0]
[1739471347098,0.92962425,2635.5,2635.4,6.79449]
[1739471347295,0.92962425,2635.5,2635.4,3.0]
[1739471347499,0.92962425,2635.5,2635.4,6.79449]
[1739471348469,0.92962425,2635.5,2635.4,3.0]
[1739471348717,0.92962425,2635.5,2635.4,6.79449]
[1739471349216,0.92962425,2635.5,2635.4,3.0]
[1739471349426,0.92962425,2635.5,2635.3,3.0]
[1739471350540,0.92962425,2635.5,2635.3,6.79462]
[1739471350811,0.92962425,2635.5,2635.0,5.17117441]
[1739471350962,0.92962425,2635.5,2635.3,3.79463]
[1739471351162,0.92962425,2635.5,2635.2,3.0]
[1739471351358,0.92962425,2635.5,2635.2,6.79476]
[1739471352509,0.92962425,2635.5,2635.1,6.7949]
[1739471352716,4.72397425,2635.5,2635.1,6.7949]
[1739471353585,3.79456,2635.4,2635.1,3.0]
[1739471353787,3.92215463,2635.4,2635.1,3.0]
[1739471353989,3.92215463,2635.4,2635.0,4.37613441]
[1739471354174,0.8097,2635.3,2635.0,8.17110441]
[1739471354731,0.12759463,2635.2,2635.1,6.79492]
[1739471355099,0.8097,2635.3,2635.1,6.79492]
[1739471355286,0.12759463,2635.2,2635.1,3.0]
[1739471355484,3.92236463,2635.2,2635.1,3.0]
[1739471355720,0.8097,2635.1,2635.0,1.37613441]
[1739471356224,0.8097,2635.1,2635.0,4.37613441]
[1739471356426,0.93720489,2635.1,2635.0,4.37613441]
[1739471356626,0.93720489,2635.1,2635.0,1.37613441]
[1739471356836,4.73212489,2635.1,2635.0,1.37613441]
[1739471356986,0.8056,2635.0,2633.7,0.77280363]
[1739471357339,4.59409,2634.4,2633.9,3.79653]
[1739471357498,0.7981,2634.4,2634.0,3.79642]
[1739471357697,0.7981,2634.4,2634.1,3.0]
[1739471358034,0.7981,2634.4,2634.2,6.79621]
[1739471358035,0.12708055,2634.3,2634.2,6.79621]
[1739471358235,0.12708055,2634.3,2634.2,3.79621]
[1739471358448,0.12708055,2634.3,2634.2,4.555466]
[1739471358806,0.29,2634.6,2634.4,3.0]
[1739471359432,0.29,2634.6,2634.4,3.79583]
[1739471359635,0.29,2634.6,2634.5,3.79578]
[1739471360020,0.29,2634.6,2634.4,3.79583]
[1739471360610,0.29,2634.6,2634.3,3.0]
[1739471361304,0.78447358,2634.6,2634.3,3.0]
[1739471361723,0.78447358,2634.6,2634.3,6.79599]
[1739471362155,0.78447358,2634.6,2634.3,3.0]
[1739471362316,0.29,2634.6,2634.3,6.79606]
[1739471362515,0.29,2634.6,2634.4,3.79593]
[1739471362825,0.12587273,2634.5,2634.4,3.79593]
[1739471363023,0.12587273,2634.5,2634.4,6.79593]
[1739471363351,0.12587273,2634.5,2634.1,3.0]
[1739471363555,0.12587273,2634.5,2634.3,3.0]
[1739471363736,0.12587273,2634.5,2634.2,3.0]
[1739471363905,0.12587273,2634.5,2634.3,3.79604]
[1739471364257,0.12587273,2634.5,2634.4,3.79593]
[1739471364560,0.12587273,2634.5,2634.3,3.79606]
[1739471364851,0.12587273,2634.5,2634.2,3.79608]
[1739471365059,0.12587273,2634.5,2634.4,3.79593]
[1739471365356,0.8119,2634.7,2634.4,3.79593]
[1739471365518,0.8119,2634.7,2634.3,3.79593]
[1739471365519,0.12587273,2634.5,2634.3,3.79593]
[1739471365881,0.8119,2634.7,2634.1,3.0]
[1739471365882,0.8119,2634.7,2634.5,3.79578]
[1739471366058,0.8119,2634.7,2634.5,7.59147]
[1739471366357,0.8119,2634.7,2634.6,3.79564]
[1739471366703,3.0949,2634.7,2634.6,3.79564]
[1739471366903,0.8119,2634.7,2634.6,3.79564]
[1739471367134,3.7949,2635.2,2634.6,6.79564]
[1739471367337,3.79492,2635.1,2634.6,3.79564]
[1739471367550,1.568744,2635.2,2634.8,3.79533]
[1739471367918,1.568744,2635.2,2634.8,3.79526]
[1739471368313,4.56504,2635.3,2634.8,3.79524]
[1739471368519,0.7704,2635.3,2635.0,3.79497]
[1739471368720,0.7704,2635.3,2635.1,3.79492]
[1739471368964,0.7704,2635.3,2635.2,3.79477]
[1739471369125,0.7704,2635.3,2635.1,3.79492]
[1739471369726,0.7704,2635.3,2635.0,3.0]
[1739471369904,0.04743768,2635.2,2634.7,3.79538]
[1739471370108,0.04743768,2635.2,2634.3,4.62205]
[1739471370109,0.7704,2635.3,2634.9,6.79516]
[1739471371257,0.7704,2635.3,2634.9,3.0]
[1739471371555,4.56504,2635.3,2634.9,3.0]
[1739471371767,3.79477,2635.2,2634.7,6.79546]
[1739471371902,3.79507,2635.0,2634.6,3.0]
[1739471372107,0.7633,2634.9,2634.5,3.79564]
[1739471372319,0.7633,2634.9,2634.7,3.79547]
[1739471372724,0.7633,2634.9,2634.6,3.0]
[1739471372935,0.7633,2634.9,2634.6,6.79562]
[1739471373259,1.219122,2634.9,2634.0,0.826]
[1739471373472,3.79537,2634.8,2634.3,3.79599]
[1739471373654,3.79537,2634.8,2634.4,3.0]
[1739471374021,3.79537,2634.8,2634.4,6.7959]
[1739471374478,5.014332,2634.9,2634.4,6.7959]
[1739471374973,1.219122,2634.9,2634.5,3.79567]
[1739471375654,3.79543,2634.8,2634.2,6.7961]
[1739471375859,0.8262,2634.7,2634.3,3.79598]
[1739471376177,4.6217,2634.7,2634.2,6.7961]
[1739471376675,0.87365058,2634.6,2633.7,0.8135]
[1739471376876,0.7676,2634.2,2633.7,3.79687]
[1739471377029,0.7676,2634.2,2633.6,3.0]
[1739471377233,0.7676,2634.2,2633.9,3.7966]
[1739471377670,0.12592168,2634.1,2634.0,3.0]
[1739471377887,0.12592168,2634.1,2634.0,3.7965]
[1739471378234,0.12592168,2634.1,2633.9,3.79656]
[1739471378838,0.12592168,2634.1,2633.7,7.59367]
[1739471379082,0.12592168,2634.1,2633.7,3.79683]
[1739471379387,0.12592168,2634.1,2633.8,3.79679]
[1739471379687,0.12592168,2634.1,2633.7,7.59369]
[1739471379983,0.12592168,2634.1,2633.7,3.79683]
[1739471380349,0.17337985,2634.1,2633.7,3.79683]
[1739471380549,0.12592168,2634.1,2633.8,3.79667]
[1739471381254,0.12592168,2634.1,2633.9,6.79663]
[1739471381451,0.12592168,2634.1,2633.9,3.0]
[1739471381782,3.92232168,2634.1,2633.7,3.0]
[1739471382001,5.92232168,2634.1,2633.5,3.79714]
[1739471382144,0.12592168,2634.1,2633.1,3.7666]
[1739471382491,0.12592168,2634.1,2633.9,3.79656]
[1739471382695,0.12592168,2634.1,2634.0,3.7965]
[1739471383356,0.8038,2634.4,2634.0,4.555806]
[1739471383675,0.12592168,2634.3,2634.2,3.79617]
[1739471383855,0.12592168,2634.3,2634.1,3.79624]
[1739471384189,0.12592168,2634.3,2634.2,3.79621]
[1739471384388,0.8038,2634.7,2634.3,3.0]
[1739471384601,0.8038,2634.7,2634.4,3.79586]
[1739471384602,0.12592168,2634.6,2634.4,3.79586]
[1739471384775,0.12592168,2634.6,2634.5,7.175366]
[1739471385016,0.8038,2635.0,2634.7,3.79546]
[1739471385218,0.12592168,2634.9,2634.7,3.79546]
[1739471385531,0.12592168,2634.9,2634.7,7.59088]
[1739471385712,0.12592168,2634.9,2634.7,3.79542]
[1739471386529,0.12592168,2634.9,2634.7,4.9691496]
[1739471386733,2.40892168,2634.9,2634.8,3.79535]
[1739471386882,0.12592168,2634.9,2634.7,3.0]
[1739471388899,0.12592168,2634.9,2634.6,3.79563]
[1739471389080,0.12592168,2634.9,2634.7,3.0]
[1739471389285,0.12592168,2634.9,2634.7,3.79548]
[1739471389530,0.12592168,2634.9,2634.5,6.79568]
[1739471390040,0.12592168,2634.9,2634.7,3.79546]
[1739471390686,0.12592168,2634.9,2634.6,3.79562]
[1739471392251,0.12592168,2634.9,2634.7,3.79542]
[1739471392401,0.12592168,2634.9,2634.7,3.0]
[1739471393055,0.12592168,2634.9,2634.8,6.79535]
[1739471393338,0.12592168,2634.9,2634.8,7.60975]
[1739471393554,4.59311,2635.5,2635.0,3.79493]
[1739471394215,3.79449,2635.4,2634.9,3.79517]
[1739471394416,4.59311,2635.5,2635.0,3.79499]
[1739471394643,4.59311,2635.5,2635.1,3.79489]
[1739471394943,4.59305,2635.5,2635.1,3.79489]
[1739471395099,0.7987,2635.5,2635.2,3.79469]
[1739471395294,0.7987,2635.5,2635.0,3.79493]
[1739471395499,4.59311,2635.5,2635.0,3.79493]
[1739471396097,1.837427,2635.5,2634.9,3.0]
[1739471396482,3.79457,2635.4,2634.9,3.79513]
[1739471396764,2.283,2635.3,2634.9,6.79513]
[1739471396976,3.79449,2635.4,2634.9,6.79513]
[1739471397244,1.837427,2635.5,2635.1,3.79491]
[1739471397432,0.7631647,2635.4,2635.1,3.79491]
[1739471397773,0.7631647,2635.4,2635.1,3.79483]
[1739471397901,0.7631647,2635.4,2634.9,3.0]
[1739471398095,4.5576647,2635.4,2635.0,3.79506]
[1739471398367,3.79464,2635.3,2634.9,3.0]
[1739471398504,3.53318047,2635.2,2634.5,0.8222]
[1739471398700,3.53318047,2635.2,2634.3,3.79606]
[1739471398701,4.55576,2634.8,2634.3,3.79606]
[1739471398898,0.04744556,2634.7,2634.2,3.79612]
[1739471399144,0.04744556,2634.7,2634.3,3.79606]
[1739471399145,3.84293556,2634.7,2634.3,3.79606]
[1739471399544,3.12286256,2634.7,2634.1,3.79627]
[1739471399746,5.12286256,2634.7,2634.1,3.79627]
[1739471399948,8.91849256,2634.7,2634.2,3.79621]
[1739471400154,2.83986256,2634.7,2634.3,3.79601]
[1739471400351,0.7603,2634.8,2634.4,3.79586]
[1739471400532,3.79557,2634.7,2634.2,3.79613]
[1739471401141,0.7603,2634.8,2634.3,3.79606]
[1739471401460,0.7603,2634.8,2634.0,6.79648]
[1739471401610,0.7741,2635.1,2634.9,3.79521]
[1739471401805,0.7741,2635.4,2635.0,3.79493]
[1739471402027,2.038691,2635.4,2635.0,3.79493]
[1739471402329,0.7741,2635.4,2635.0,3.79493]
[1739471402527,0.7741,2635.4,2635.1,3.79491]
[1739471402728,6.0792,2635.7,2635.2,3.7947]
[1739471403025,6.0792,2635.7,2635.1,0.7529]
[1739471403026,0.7592,2635.7,2635.4,3.79434]
[1739471403227,0.04743109,2635.6,2635.0,3.0]
[1739471403409,10.8622955,2635.7,2635.1,3.7949]
[1739471403617,3.79424,2635.6,2635.1,3.7949]
[1739471404139,0.7706,2635.5,2634.7,3.79547]
[1739471404338,5.12661802,2635.5,2635.0,3.0]
[1739471404880,3.79476,2635.3,2635.0,3.0]
[1739471405170,1.37961618,2635.5,2635.0,3.0]
[1739471405171,3.79457,2635.4,2635.0,3.0]
[1739471405369,3.79463,2635.3,2635.0,3.0]
[1739471405727,3.84221817,2635.2,2635.0,3.0]
[1739471406689,0.04743817,2635.2,2635.0,3.0]
[1739471406981,6.07757,2635.4,2635.0,3.0]
[1739471407320,3.79464,2635.3,2635.0,3.0]
[1739471407524,4.60431,2635.1,2634.5,3.79569]
[1739471407721,3.79516,2635.0,2634.4,4.59732]
[1739471407957,3.79516,2635.0,2634.3,3.79597]
[1739471407958,0.04744443,2634.9,2634.3,3.79597]
[1739471408138,3.79536,2634.8,2634.3,3.79597]
[1739471408342,3.79536,2634.8,2634.4,3.0]
[1739471408536,3.79536,2634.8,2634.1,4.59769]
[1739471408537,0.8093,2634.7,2634.2,3.79613]
[1739471408769,0.85674451,2634.7,2634.0,3.79641]
[1739471408979,0.85674451,2634.7,2634.2,3.0]
[1739471408980,3.79581,2634.5,2634.2,3.0]
[1739471409121,0.85674451,2634.7,2633.6,4.59841]
[1739471409122,2.283,2634.3,2633.6,4.59841]
[1739471409324,4.65305424,2634.2,2633.7,3.79682]
[1739471409630,4.6056,2634.2,2633.8,3.79679]
[1739471409850,0.8093,2634.2,2633.9,3.79664]
[1739471410088,0.8093,2634.2,2633.6,4.59838]
[1739471410235,0.04745838,2634.1,2633.5,3.79722]
[1739471410540,3.79653,2634.0,2633.6,3.0]
[1739471410717,3.981124,2634.2,2633.3,4.56087]
[1739471410936,7.777344,2634.2,2633.7,3.79683]
[1739471411274,7.777344,2634.2,2633.8,3.7967]
[1739471411275,3.981124,2634.2,2633.8,3.7967]
[1739471411487,0.0474587,2634.1,2633.7,3.79693]
[1739471411689,3.79637,2634.1,2633.6,3.79702]
[1739471411891,4.60555,2634.2,2633.3,0.7634]
[1739471412039,2.0,2634.1,2633.7,3.79684]
[1739471412239,5.79637,2634.1,2633.6,3.79702]
[1739471412557,3.84400285,2634.0,2633.5,3.0]
[1739471412936,7.64058285,2634.0,2633.5,3.0]
[1739471413136,1.04498829,2634.0,2633.5,3.0]
[1739471413337,1.04498829,2634.0,2632.9,0.7722]
[1739471413338,3.79698,2633.7,2632.9,0.7722]
[1739471413588,3.79715,2633.6,2633.0,3.79787]
[1739471413794,0.81106927,2633.6,2633.1,3.0]
[1739471414290,3.79738,2633.4,2633.0,3.0]
[1739471415285,0.456098,2633.4,2632.7,0.7742]
[1739471415457,0.7636,2633.6,2632.9,3.79798]
[1739471415657,4.56068,2633.6,2633.2,3.0]
[1739471416037,0.7636,2633.6,2633.3,3.7974]
[1739471416241,4.56071,2633.6,2633.2,3.0]
[1739471416458,0.7636,2633.6,2633.2,3.0]
[1739471416656,0.7636,2633.6,2633.2,4.556633]
[1739471417092,0.0474671,2633.5,2633.2,0.759003]
[1739471417317,0.7636,2633.6,2633.2,3.79758]
[1739471417660,0.16744905,2633.5,2633.1,6.79767]
[1739471417860,0.11998068,2633.5,2633.1,3.0]
[1739471418060,0.11998068,2633.5,2633.4,3.79737]
[1739471418657,0.7854,2633.9,2633.4,3.79737]
[1739471418977,0.11965322,2633.5,2633.4,3.79737]
[1739471419390,4.58205,2633.9,2633.4,3.79737]
[1739471419595,0.11965322,2633.5,2633.4,3.79737]
[1739471419900,0.11965322,2633.8,2633.5,3.7972]
[1739471420061,0.7854,2633.9,2633.5,3.7972]
[1739471420261,0.11973509,2633.7,2633.5,3.7972]
[1739471420502,0.7854,2633.9,2633.5,0.759469]
[1739471420657,0.0075,2634.4,2633.6,3.02856314]
[1739471420658,0.755,2634.2,2633.6,3.02856314]
[1739471420863,0.755,2634.2,2633.9,3.79652]
[1739471421199,0.755,2634.6,2634.3,3.79594]
[1739471421509,0.755,2634.6,2634.3,3.79599]
[1739471421861,0.755,2634.6,2634.3,3.79594]
[1739471422266,0.755,2634.6,2634.4,3.79579]
[1739471422471,0.755,2634.6,2634.3,3.79604]
[1739471422692,0.755,2634.6,2634.2,3.0]
[1739471423421,5.79579,2634.5,2634.0,6.79642]
[1739471423624,2.0,2634.5,2633.8,3.0]
[1739471423924,3.79653,2634.0,2633.5,3.79713]
[1739471424071,0.763,2633.9,2633.6,3.0]
[1739471424268,0.763,2633.9,2633.3,7.59487]
[1739471424477,4.55972,2633.9,2633.4,3.79729]
[1739471424713,3.79687,2633.8,2633.4,3.0]
[1739471425029,0.763,2633.6,2632.9,3.79798]
[1739471425312,0.455996,2633.5,2632.9,3.79798]
[1739471425465,0.455996,2633.5,2633.0,3.0]
[1739471425660,0.763,2633.6,2633.0,3.0]
[1739471425915,0.763,2633.6,2633.3,3.0]
[1739471426125,0.763,2633.6,2633.2,3.0]
[1739471426537,0.763,2633.6,2633.2,6.79765]
[1739471427568,0.763,2633.6,2633.3,3.7975]
[1739471428152,0.763,2633.6,2633.4,3.79729]
[1739471428284,0.974284,2634.0,2633.4,3.79729]
[1739471428285,0.11973509,2633.5,2633.4,4.58542189]
[1739471428485,0.7916,2634.3,2634.1,3.79631]
[1739471428684,0.7916,2634.3,2634.2,3.79621]
[1739471428888,1.978659,2634.6,2634.1,7.59259]
[1739471429139,1.978659,2634.6,2634.1,3.79628]
[1739471429784,0.04745108,2634.5,2634.1,3.0]
[1739471429991,3.79594,2634.4,2634.0,3.0]
[1739471430193,0.04745108,2634.5,2634.0,3.0]
[1739471430398,4.58727,2634.6,2634.1,3.79635]
[1739471430710,4.58727,2634.6,2634.1,3.79627]
[1739471430915,0.7542,2634.9,2634.5,3.79578]
[1739471431116,0.7542,2634.9,2634.6,3.79552]
[1739471431321,0.7542,2634.9,2634.7,3.79538]
[1739471431493,0.8003,2635.2,2634.8,3.79535]
[1739471431693,0.8003,2635.2,2634.7,3.79538]
[1739471432138,4.59518,2635.2,2634.6,3.0]
[1739471432655,0.8003,2635.2,2634.8,3.79529]
[1739471433843,0.8003,2635.2,2634.8,3.79534]
[1739471434715,4.59511,2635.2,2634.7,3.79548]
[1739471435248,4.59511,2635.2,2634.3,0.7872]
[1739471435249,0.8003,2635.2,2634.9,3.79507]
[1739471435449,3.79444,2635.5,2635.4,3.79449]
[1739471435450,0.7557,2635.5,2635.4,3.79449]
[1739471435601,7.587743,2635.9,2635.4,3.79449]
[1739471435802,5.3647843,2635.8,2635.2,3.7947]
[1739471436037,1.5707743,2635.8,2635.3,3.79455]
[1739471436241,1.5707743,2635.8,2634.8,3.7999]
[1739471436444,0.812,2635.8,2635.4,3.79436]
[1739471436754,3.79417,2635.7,2635.2,3.79468]
[1739471436900,3.7943,2635.6,2635.1,3.8073]
[1739471437331,3.7943,2635.6,2635.0,3.0]
[1739471437536,3.7943,2635.6,2635.0,3.79499]
[1739471437791,3.7943,2635.6,2635.2,3.0]
[1739471437952,3.7943,2635.6,2634.9,3.0]
[1739471437953,3.79465,2635.3,2634.9,3.0]
[1739471438104,0.7511,2635.5,2634.6,3.79554]
[1739471438105,3.79505,2635.1,2634.6,3.79554]
[1739471438304,3.79502,2635.1,2634.6,3.79554]
[1739471438557,0.8106,2635.0,2634.3,0.8142]
[1739471438758,0.04744661,2634.9,2634.0,4.61061]
[1739471438963,4.60631,2634.6,2634.0,3.79638]
[1739471439266,4.60631,2634.6,2633.4,0.759479]
[1739471439267,3.79645,2634.1,2633.5,3.7971]
[1739471439564,0.7831,2634.2,2633.5,6.79721]
[1739471439728,0.7756,2634.2,2633.7,3.79683]
[1739471440050,0.7756,2634.6,2633.6,3.0]
[1739471440270,0.82305054,2634.6,2634.3,3.0]
[1739471440457,0.7756,2634.6,2634.2,3.0]
[1739471440625,0.05495022,2634.5,2633.8,3.79672]
[1739471440826,3.79601,2634.4,2633.8,3.7967]
[1739471441019,3.79608,2634.3,2633.7,4.59534554]
[1739471441245,0.7623,2634.1,2633.6,3.79701]
[1739471441405,0.7623,2634.1,2633.5,3.79722]
[1739471441406,4.55874,2634.1,2633.5,3.79722]
[1739471441604,3.79677,2633.9,2633.2,3.79753]
[1739471441822,0.04746367,2634.0,2633.2,3.79753]
[1739471442160,3.79659,2634.0,2633.2,0.458403]
[1739471442306,0.7623,2634.1,2633.5,3.0]
[1739471442506,4.55874,2634.1,2633.5,6.79721]
[1739471442709,3.79674,2633.9,2633.2,3.79751]
[1739471442935,3.797,2633.7,2633.1,3.79778]
[1739471443138,4.8439013,2633.7,2633.0,3.79781]
[1739471443346,0.12127375,2633.6,2633.0,3.79781]
[1739471443964,3.79725,2633.5,2632.9,3.79809]
[1739471444167,0.12127375,2633.6,2633.0,3.79785]
[1739471444317,0.12127375,2633.6,2632.9,3.0]
[1739471444318,0.12076628,2633.4,2633.2,3.0]
[1739471444514,4.8439013,2633.7,2633.0,3.0]
[1739471444732,0.93786628,2633.3,2632.9,3.0]
[1739471445032,0.93786628,2633.3,2632.6,0.8202]
[1739471445033,0.12045513,2633.2,2632.6,0.8202]
[1739471445414,0.12045513,2633.2,2633.1,6.7978]
[1739471445775,3.79724,2633.5,2633.1,3.0]
[1739471445921,0.12045513,2633.2,2633.0,3.0]
[1739471446271,0.12045513,2633.1,2633.0,6.7979]
[1739471446468,3.79724,2633.5,2633.0,6.7979]
[1739471446681,0.12045513,2633.1,2633.0,3.0]
[1739471446844,3.79742,2633.4,2633.0,3.0]
[1739471447025,0.12045513,2633.1,2633.0,3.0]
[1739471447228,1.035223,2633.5,2633.0,3.0]
[1739471447552,0.12045513,2633.4,2633.0,6.79787]
[1739471447761,0.12045513,2633.4,2633.0,3.0]
[1739471448077,0.758,2633.6,2633.2,3.79756]
[1739471448227,0.12045513,2633.3,2633.2,3.0]
[1739471448425,0.761,2633.8,2633.4,3.79734]
[1739471448622,0.12045513,2633.7,2633.4,3.79734]
[1739471448828,0.761,2633.8,2633.4,3.79734]
[1739471449055,0.12045513,2633.7,2633.4,3.79734]
[1739471449273,0.761,2633.8,2633.4,3.79734]
[1739471449471,0.761,2633.8,2633.1,0.8138]
[1739471449472,0.12045513,2633.6,2633.1,3.0]
[1739471449651,5.79703,2633.7,2633.2,3.79764]
[1739471449855,3.91775513,2633.5,2633.1,3.0]
[1739471450069,3.84495068,2633.4,2632.9,3.0]
[1739471450275,0.7983,2633.3,2632.9,6.79808]
[1739471450456,0.11930931,2633.4,2633.2,3.0]
[1739471450792,0.7983,2633.5,2633.2,3.0]
[1739471451086,2.0,2633.7,2632.7,3.768]
[1739471451297,4.59582,2633.3,2632.9,3.0]
[1739471451443,4.59582,2633.3,2632.7,4.56627]
[1739471451639,3.91696931,2633.2,2632.5,3.79857]
[1739471451844,3.7979,2633.1,2632.6,3.7985]
[1739471452080,3.91724207,2633.1,2632.6,3.7985]
[1739471452393,3.91724207,2633.1,2632.4,3.7988]
[1739471452394,0.7741,2632.8,2632.4,3.7988]
[1739471452596,0.7741,2632.8,2632.3,3.79886]
[1739471452802,4.57241,2632.8,2632.4,3.0]
[1739471452978,0.11934207,2632.7,2632.1,4.55564]
[1739471453176,3.91779207,2632.7,2632.1,3.79913]
[1739471453407,3.84610427,2632.6,2632.1,3.0]
[1739471453542,2.59327927,2632.7,2632.2,7.59804]
[1739471453742,0.11894073,2632.5,2632.3,3.0]
[1739471453971,0.4739372,2632.7,2632.3,6.79887]
[1739471454301,0.7741,2632.8,2632.5,3.79865]
[1739471454586,0.7741,2632.8,2632.4,3.79873]
[1739471454587,0.11894073,2632.6,2632.4,3.79873]
[1739471454738,0.7741,2632.8,2632.3,3.79882]
[1739471454944,0.7741,2632.8,2632.1,7.59824]
[1739471454945,0.11866216,2632.5,2632.1,7.59824]
[1739471455144,3.8460126,2632.6,2632.0,3.79939]
[1739471455357,0.11866216,2632.4,2632.1,3.79924]
[1739471455572,4.26062126,2632.6,2632.0,3.79939]
[1739471455740,0.11866216,2632.3,2632.1,3.79923]
[1739471455968,4.5724,2632.8,2632.3,3.79895]
[1739471455969,0.7741,2632.8,2632.3,3.79895]
[1739471456168,1.45964,2632.8,2632.3,6.79886]
[1739471456366,1.45964,2632.8,2632.3,10.59774]
[1739471456566,1.45964,2632.8,2632.3,6.79886]
[1739471456764,3.7984,2632.7,2632.3,3.0]
[1739471456965,6.32895247,2632.7,2632.3,3.0]
[1739471457595,6.32895247,2632.7,2632.4,3.79881]
[1739471457596,0.53055247,2632.7,2632.4,3.79881]
[1739471457908,6.59712,2633.1,2632.6,3.79852]
[1739471458264,3.91677868,2633.0,2632.5,7.59725]
[1739471458488,0.11876868,2633.0,2632.5,3.79859]
[1739471458682,0.11876868,2633.0,2632.6,3.79847]
[1739471458885,0.11876868,2633.0,2632.7,3.79829]
[1739471459066,0.11876868,2633.0,2632.9,3.79809]
[1739471459266,2.8186,2633.4,2632.7,0.379829]
[1739471459583,2.8186,2633.4,2633.1,3.79767]
[1739471459758,2.8186,2633.4,2633.1,3.79771]
[1739471459954,3.79722,2633.5,2632.8,3.0]
[1739471460288,3.79722,2633.5,2632.8,6.79816]
[1739471460289,3.79753,2633.3,2632.8,6.79816]
[1739471460583,3.79788,2633.1,2632.6,3.0]
[1739471460792,0.7683,2633.2,2632.8,3.0]
[1739471460946,4.453832,2633.5,2633.0,3.79792]
[1739471460947,0.7545,2633.5,2633.0,3.79792]
[1739471461149,0.80197235,2633.5,2632.9,3.79806]
[1739471461473,0.80197235,2633.5,2632.5,0.7562]
[1739471461474,3.79781,2633.1,2632.8,3.0]
[1739471461672,0.7638,2633.0,2632.8,3.0]
[1739471462079,0.81127689,2633.0,2632.4,3.79872]
[1739471462289,0.81127689,2633.0,2632.4,3.79871]
[1739471462438,4.56176,2633.0,2632.4,3.79871]
[1739471462776,2.0,2633.3,2632.8,3.79813]